[Event "46th GRE-chT Premier 2018"]
[Site "Rio Achaia"]
[Date "2018.07.10"]
[Round "1"]
[White "Kalyva, Kyriaki"]
[Black "Paroglou, Marianna"]
[Result "1-0"]
[ECO "D31"]
[WhiteElo "1734"]
[BlackElo "1241"]
[Annotator "NA"]
[PlyCount "69"]
[EventDate "2018.07.10"]
[EventType "team-tourn"]
[EventCountry "GRE"]
[SourceTitle "playchess.com"]
[Source "ChessBase"]
[SourceQuality "1"]
[TimeControl "40/5400+30:1800+30"]

1. d4 {[%emt 0:00:00]} e6 {[%emt 0:00:00]} 2. c4 {[%emt 0:00:00]} d5 {[%emt 0:00:00]} 3. Nc3 {[%emt 0:00:00]} c6 {[%emt 0:01:05]} 4. cxd5 {[%emt 0:00:07]} cxd5 {[%emt 0:01:31]} 5. Nf3 {[%emt 0:00:26]} f5 {[%emt 0:02:37]} 6. Bf4 {[%emt 0:01:35]} Nf6 {[%emt 0:01:09]} 7. e3 {[%emt 0:01:24]} a6 {[%emt 0:02:18]} 8. Bd3 {[%emt 0:02:46]} Nc6 {[%emt 0:01:21]} 9. O-O {[%emt 0:04:02]} Be7 {[%emt 0:01:57]} 10. Rc1 {[%emt 0:04:01]} O-O {[%emt 0:03:33]} 11. a3 {[%emt 0:02:33]} Bd7 {[%emt 0:00:55]} 12. Ne5 {[%emt 0:05:39]} Nxe5 {[%emt 0:02:03]} 13. dxe5 {[%emt 0:01:21]} Ne4 {[%emt 0:11:25]} 14. f3 {[%emt 0:13:55]} Nxc3 {[%emt 0:01:50]} 15. Rxc3 {[%emt 0:00:14]} Rc8 {[%emt 0:08:18]} 16. Qb3 {[%emt 0:04:04]} Rxc3 {[%emt 0:02:34]} 17. bxc3 {[%emt 0:00:18]} b5 {[%emt 0:13:04]} 18. h3 {[%emt 0:36:28]} Qb6 {[%emt 0:09:39]} 19. Re1 {[%emt 0:05:12]} Qa5 {[%emt 0:17:24]} 20. g4 {[%emt 0:07:18]} Qxa3 {[%emt 0:11:11]} 21. Qxa3 {[%emt 0:00:18]} Bxa3 {[%emt 0:00:11]} 22. Ra1 {[%emt 0:00:42]} Bb2 {[%emt 0:01:33]} 23. Rxa6 {[%emt 0:00:06]} fxg4 {[%emt 0:03:56]} 24. hxg4 {[%emt 0:00:30]} Bxc3 {[%emt 0:00:37]} 25. Rd6 {[%emt 0:00:11]} Rf7 {[%emt 0:00:55]} 26. g5 {[%emt 0:01:10]} g6 {[%emt 0:00:53]} 27. Bxb5 {[%emt 0:05:50]} Bxb5 {[%emt 0:00:40]} 28. Rxe6 {[%emt 0:00:05]} d4 {[%emt 0:00:39]} 29. Rb6 {[%emt 0:02:44]} dxe3 {[%emt 0:00:39]} 30. Bxe3 {[%emt 0:00:07]} Be2 {[%emt 0:00:25]} 31. e6 {[%emt 0:01:06]} Re7 {[%emt 0:00:31]} 32. Rc6 {[%emt 0:00:32]} Bb4 {[%emt 0:00:33]} 33. Rc8+ {[%emt 0:00:08]} Re8 {[%emt 0:00:32]} 34. Rxe8+ {[%emt 0:00:06]} Kg7 {[%emt 0:00:27]} 35. Bd4# {[%emt 0:00:06]} 1-0

[Event "46th GRE-chT Premier 2018"]
[Site "Rio Achaia"]
[Date "2018.07.10"]
[Round "1"]
[White "Bastianou, Chrysoula"]
[Black "Giannoulaki, Ermofili"]
[Result "1-0"]
[ECO "A53"]
[WhiteElo "1710"]
[BlackElo "1286"]
[Annotator "NA"]
[PlyCount "71"]
[EventDate "2018.07.10"]
[EventType "team-tourn"]
[EventCountry "GRE"]
[SourceTitle "playchess.com"]
[Source "ChessBase"]
[SourceQuality "1"]
[TimeControl "40/5400+30:1800+30"]

1. d4 {[%emt 0:00:00]} Nf6 {[%emt 0:00:00]} 2. c4 {[%emt 0:00:00]} d6 {[%emt 0:00:00]} 3. Nc3 {[%emt 0:00:00]} e5 {[%emt 0:00:00]} 4. e3 {[%emt 0:02:42]} Nbd7 {[%emt 0:00:24]} 5. Qc2 {[%emt 0:00:52]} c6 {[%emt 0:00:42]} 6. Nf3 {[%emt 0:00:58]} Be7 {[%emt 0:00:25]} 7. Be2 {[%emt 0:01:47]} O-O {[%emt 0:01:07]} 8. O-O {[%emt 0:00:07]} Qc7 {[%emt 0:00:21]} 9. b3 {[%emt 0:04:08]} b6 {[%emt 0:02:09]} 10. Ba3 {[%emt 0:01:52]} Re8 {[%emt 0:00:22]} 11. Rac1 {[%emt 0:01:57]} Bb7 {[%emt 0:00:30]} 12. Rfd1 {[%emt 0:01:48]} Rac8 {[%emt 0:00:48]} 13. Qb1 {[%emt 0:07:34]} Qb8 {[%emt 0:04:04]} 14. Bd3 {[%emt 0:05:17]} Bf8 {[%emt 0:01:29]} 15. Bf5 {[%emt 0:03:48]} Rc7 {[%emt 0:04:31]} 16. dxe5 {[%emt 0:07:35]} dxe5 {[%emt 0:04:03]} 17. Bd6 {[%emt 0:02:23]} Bxd6 {[%emt 0:00:41]} 18. Rxd6 {[%emt 0:00:06]} a5 {[%emt 0:05:53]} 19. a3 {[%emt 0:08:04]} b5 {[%emt 0:06:09]} 20. Rcd1 {[%emt 0:06:48]} Bc8 {[%emt 0:01:39]} 21. Qc2 {[%emt 0:11:06]} Nc5 {[%emt 0:03:41]} 22. Bxc8 Rcxc8 23. b4 {[%emt 0:17:11]} axb4 {[%emt 0:02:08]} 24. axb4 {[%emt 0:00:16]} Na6 {[%emt 0:00:55]} 25. cxb5 {[%emt 0:03:54]} Nxb4 {[%emt 0:03:45]} 26. Qb3 {[%emt 0:00:48]} Nbd5 {[%emt 0:00:45]} 27. Nxd5 {[%emt 0:00:55]} Nxd5 {[%emt 0:00:53]} 28. Rd7 {[%emt 0:00:43]} Red8 {[%emt 0:04:42]} 29. Rxd8+ {[%emt 0:01:08]} Rxd8 {[%emt 0:05:17]} 30. e4 {[%emt 0:00:56]} Nf6 {[%emt 0:01:45]} 31. Rxd8+ {[%emt 0:01:34]} Qxd8 {[%emt 0:00:09]} 32. Nxe5 {[%emt 0:03:14]} Qe7 {[%emt 0:02:25]} 33. Nxc6 {[%emt 0:02:00]} Qxe4 {[%emt 0:00:49]} 34. Qd1 {[%emt 0:01:11]} h6 {[%emt 0:02:23]} 35. h3 {[%emt 0:00:33]} Nd5 {[%emt 0:01:12]} 36. Qxd5 {[%emt 0:00:14]} 1-0

[Event "46th GRE-chT Premier 2018"]
[Site "Rio Achaia"]
[Date "2018.07.10"]
[Round "1"]
[White "Kouta, Antonia"]
[Black "Vitzileou, Fedra"]
[Result "1-0"]
[ECO "B38"]
[WhiteElo "1703"]
[BlackElo "1226"]
[Annotator "NA"]
[PlyCount "47"]
[EventDate "2018.07.10"]
[EventType "team-tourn"]
[EventCountry "GRE"]
[SourceTitle "playchess.com"]
[Source "ChessBase"]
[SourceQuality "1"]
[TimeControl "40/5400+30:1800+30"]

1. e4 {[%emt 0:00:00]} c5 {[%emt 0:00:00]} 2. Nf3 {[%emt 0:00:00]} Nc6 {[%emt 0:00:00]} 3. d4 {[%emt 0:00:00]} cxd4 {[%emt 0:00:00]} 4. Nxd4 {[%emt 0:00:00]} g6 {[%emt 0:00:00]} 5. c4 {[%emt 0:00:00]} Bg7 {[%emt 0:00:00]} 6. Be3 {[%emt 0:00:00]} Nf6 {[%emt 0:00:14]} 7. Nc3 {[%emt 0:00:00]} O-O {[%emt 0:00:08]} 8. Be2 {[%emt 0:00:21]} d6 {[%emt 0:00:18]} 9. f3 {[%emt 0:08:21]} a5 {[%emt 0:03:54]} 10. Qd2 {[%emt 0:06:21]} Nd7 {[%emt 0:08:19]} 11. Nd5 {[%emt 0:04:14]} Nxd4 {[%emt 0:05:31]} 12. Bxd4 {[%emt 0:00:17]} Bxd4 {[%emt 0:02:15]} 13. Qxd4 {[%emt 0:00:08]} Nc5 {[%emt 0:01:46]} 14. h4 {[%emt 0:07:57]} e5 {[%emt 0:14:33]} 15. Qd2 {[%emt 0:08:54]} Kh8 {[%emt 0:13:34]} 16. O-O-O {[%emt 0:08:30]} a4 {[%emt 0:04:53]} 17. Qh6 {[%emt 0:14:01]} Rg8 {[%emt 0:08:41]} 18. g4 {[%emt 0:09:54]} Ne6 {[%emt 0:21:24]} 19. Kb1 {[%emt 0:04:01]} f5 {[%emt 0:02:51]} 20. gxf5 {[%emt 0:05:28]} gxf5 {[%emt 0:00:15]} 21. Nf6 {[%emt 0:03:02]} Rg7 {[%emt 0:01:25]} 22. Rhg1 {[%emt 0:01:10]} Qe7 {[%emt 0:00:42]} 23. Qxh7+ {[%emt 0:02:14]} Rxh7 {[%emt 0:00:19]} 24. Rg8# {[%emt 0:00:05]} 1-0

[Event "46th GRE-chT Premier 2018"]
[Site "Rio Achaia"]
[Date "2018.07.10"]
[Round "1"]
[White "Markaki, Sofia"]
[Black "Petraki, Maria"]
[Result "0-1"]
[ECO "B99"]
[WhiteElo "1694"]
[BlackElo "1962"]
[Annotator "NA"]
[PlyCount "76"]
[EventDate "2018.07.10"]
[EventType "team-tourn"]
[EventCountry "GRE"]
[SourceTitle "playchess.com"]
[Source "ChessBase"]
[SourceQuality "1"]
[TimeControl "40/5400+30:1800+30"]

1. e4 {[%emt 0:00:00]} c5 {[%emt 0:00:00]} 2. Nf3 {[%emt 0:00:00]} d6 {[%emt 0:00:00]} 3. d4 {[%emt 0:00:00]} cxd4 {[%emt 0:00:00]} 4. Nxd4 {[%emt 0:00:00]} Nf6 {[%emt 0:00:00]} 5. Nc3 {[%emt 0:00:00]} a6 {[%emt 0:00:06]} 6. Bg5 {[%emt 0:00:00]} Nbd7 {[%emt 0:00:11]} 7. f4 {[%emt 0:00:25]} Qc7 {[%emt 0:07:18]} 8. Qf3 {[%emt 0:07:35]} e6 {[%emt 0:11:01]} 9. O-O-O {[%emt 0:02:41]} Be7 {[%emt 0:01:57]} 10. Bd3 {[%emt 0:05:48]} h6 {[%emt 0:05:35]} 11. Bh4 {[%emt 0:00:32]} g5 {[%emt 0:16:21]} 12. fxg5 {[%emt 0:19:21]} Ne5 {[%emt 0:00:42]} 13. Qe2 {[%emt 0:01:09]} Nfg4 {[%emt 0:07:22]} 14. h3 {[%emt 0:22:08]} hxg5 {[%emt 0:01:04]} 15. Bg3 {[%emt 0:00:10]} Nxd3+ {[%emt 0:02:52]} 16. cxd3 {[%emt 0:02:23]} Ne5 {[%emt 0:06:30]} 17. Kb1 {[%emt 0:00:46]} Bd7 {[%emt 0:05:18]} 18. Rc1 {[%emt 0:08:01]} Qa5 {[%emt 0:04:29]} 19. Nb3 {[%emt 0:01:01]} Qd8 {[%emt 0:02:25]} 20. d4 {[%emt 0:00:53]} Ng6 {[%emt 0:02:24]} 21. Rhf1 {[%emt 0:01:57]} O-O {[%emt 0:06:33]} 22. Nd2 {[%emt 0:06:37]} b5 {[%emt 0:01:32]} 23. e5 {[%emt 0:05:04]} d5 {[%emt 0:01:22]} 24. Qg4 {[%emt 0:00:37]} b4 {[%emt 0:00:56]} 25. Ne2 {[%emt 0:01:45]} Bb5 {[%emt 0:00:24]} 26. h4 {[%emt 0:09:43]} gxh4 {[%emt 0:01:32]} 27. Nf4 {[%emt 0:01:15]} Bxf1 {[%emt 0:10:55]} 28. Rxf1 {[%emt 0:01:42]} Kg7 {[%emt 0:04:03]} 29. Nh5+ {[%emt 0:00:25]} Kh7 {[%emt 0:00:10]} 30. Nf6+ {[%emt 0:00:18]} Kg7 {[%emt 0:00:59]} 31. Bxh4 {[%emt 0:01:07]} Rh8 {[%emt 0:00:31]} 32. Nh5+ {[%emt 0:00:56]} Rxh5 {[%emt 0:00:27]} 33. Bxe7 {[%emt 0:00:50]} Qxe7 {[%emt 0:00:09]} 34. Qxh5 {[%emt 0:00:04]} Rh8 {[%emt 0:00:23]} 35. Qf3 {[%emt 0:00:34]} Rh4 {[%emt 0:00:36]} 36. Nb3 {[%emt 0:01:09]} Rf4 {[%emt 0:00:56]} 37. Qd3 {[%emt 0:00:13]} Qg5 {[%emt 0:00:47]} 38. Qxa6 {[%emt 0:01:17]} Qf5+ 0-1

[Event "46th GRE-chT Premier 2018"]
[Site "Rio Achaia"]
[Date "2018.07.10"]
[Round "1"]
[White "Prokopiou, Ekaterini"]
[Black "Skaraki, Antigoni"]
[Result "0-1"]
[ECO "E61"]
[WhiteElo "1661"]
[BlackElo "2027"]
[Annotator "NA"]
[PlyCount "110"]
[EventDate "2018.07.10"]
[EventType "team-tourn"]
[EventCountry "GRE"]
[SourceTitle "playchess.com"]
[Source "ChessBase"]
[SourceQuality "1"]
[TimeControl "40/5400+30:1800+30"]

1. d4 {[%emt 0:00:00]} Nf6 {[%emt 0:00:00]} 2. c4 {[%emt 0:00:00]} g6 {[%emt 0:00:00]} 3. Nc3 {[%emt 0:00:28]} Bg7 {[%emt 0:00:00]} 4. Nf3 {[%emt 0:00:12]} O-O {[%emt 0:00:00]} 5. Bf4 {[%emt 0:00:23]} d6 {[%emt 0:03:31]} 6. h3 {[%emt 0:00:45]} c5 {[%emt 0:02:35]} 7. e3 {[%emt 0:00:56]} Qa5 {[%emt 0:17:49]} 8. Qd2 {[%emt 0:14:41]} a6 {[%emt 0:05:22]} 9. Be2 {[%emt 0:07:59]} Re8 {[%emt 0:14:51]} 10. d5 {[%emt 0:18:51]} Bd7 {[%emt 0:05:10]} 11. e4 {[%emt 0:08:05]} b5 {[%emt 0:07:42]} 12. e5 {[%emt 0:03:59]} dxe5 {[%emt 0:12:40]} 13. Nxe5 {[%emt 0:04:08]} b4 {[%emt 0:00:56]} 14. Nd1 {[%emt 0:01:55]} Ne4 {[%emt 0:06:53]} 15. Qe3 {[%emt 0:06:19]} b3+ {[%emt 0:01:23]} 16. Nc3 {[%emt 0:09:46]} Bf5 {[%emt 0:01:24]} 17. O-O {[%emt 0:04:15]} Nxc3 {[%emt 0:00:18]} 18. Qxc3 {[%emt 0:00:14]} Qxc3 {[%emt 0:00:12]} 19. bxc3 {[%emt 0:00:06]} b2 {[%emt 0:00:12]} 20. Rab1 {[%emt 0:00:31]} Bxb1 {[%emt 0:01:51]} 21. Rxb1 {[%emt 0:00:06]} g5 {[%emt 0:00:47]} 22. Bg3 {[%emt 0:00:39]} Bxe5 {[%emt 0:10:20]} 23. Bxe5 {[%emt 0:00:12]} Nd7 {[%emt 0:00:04]} 24. Bg3 {[%emt 0:00:16]} f5 {[%emt 0:01:26]} 25. Bc7 {[%emt 0:04:41]} Ra7 {[%emt 0:01:34]} 26. Bh5 {[%emt 0:00:37]} Rc8 {[%emt 0:02:19]} 27. d6 {[%emt 0:01:16]} exd6 {[%emt 0:01:28]} 28. Bxd6 {[%emt 0:00:06]} Nf6 {[%emt 0:00:30]} 29. Bf3 {[%emt 0:01:00]} Ne4 {[%emt 0:01:52]} 30. Bxe4 {[%emt 0:00:51]} fxe4 {[%emt 0:00:01]} 31. Rxb2 {[%emt 0:00:09]} Rd7 {[%emt 0:00:17]} 32. Rb6 {[%emt 0:01:58]} a5 {[%emt 0:00:54]} 33. Ra6 {[%emt 0:00:34]} h5 {[%emt 0:00:59]} 34. a4 {[%emt 0:03:19]} Kh7 {[%emt 0:00:29]} 35. Kh2 {[%emt 0:02:27]} h4 {[%emt 0:00:33]} 36. Kg1 {[%emt 0:03:40]} Kg7 {[%emt 0:00:52]} 37. Be5+ {[%emt 0:00:19]} Kf7 {[%emt 0:00:22]} 38. Rf6+ {[%emt 0:00:40]} Ke7 {[%emt 0:00:15]} 39. Rg6 {[%emt 0:00:41]} Rd1+ {[%emt 0:00:13]} 40. Kh2 {[%emt 0:00:00]} Rf1 {[%emt 0:00:00]} 41. Rxg5 {[%emt 0:01:42]} Rxf2 {[%emt 0:12:57]} 42. Rg4 {[%emt 0:03:28]} Re2 {[%emt 0:01:09]} 43. Rxh4 {[%emt 0:00:40]} Ke6 {[%emt 0:03:42]} 44. Bg3 {[%emt 0:02:52]} Rd8 {[%emt 0:03:13]} 45. Rh6+ {[%emt 0:03:31]} Kf7 {[%emt 0:01:39]} 46. Bd6 {[%emt 0:01:26]} e3 {[%emt 0:06:37]} 47. h4 {[%emt 0:06:04]} Rg8 {[%emt 0:01:59]} 48. Bg3 {[%emt 0:04:29]} Ra2 {[%emt 0:00:58]} 49. Rc6 {[%emt 0:02:35]} Re8 {[%emt 0:03:23]} 50. Rxc5 {[%emt 0:00:35]} e2 {[%emt 0:00:37]} 51. Rxa5 {[%emt 0:00:32]} e1=Q {[%emt 0:00:05]} 52. Bxe1 {[%emt 0:00:05]} Rxe1 {[%emt 0:00:01]} 53. Rg5 {[%emt 0:01:30]} Rxa4 {[%emt 0:00:10]} 54. Rg4 {[%emt 0:00:11]} Re3 {[%emt 0:00:19]} 55. h5 {[%emt 0:00:09]} Rxc3 {[%emt 0:00:37]} 0-1

[Event "46th GRE-chT Premier 2018"]
[Site "Rio Achaia"]
[Date "2018.07.10"]
[Round "1"]
[White "Kokkota, Fotini"]
[Black "Fragou, Maria V"]
[Result "1-0"]
[ECO "B19"]
[WhiteElo "1615"]
[BlackElo "1427"]
[Annotator "NA"]
[PlyCount "61"]
[EventDate "2018.07.10"]
[EventType "team-tourn"]
[EventCountry "GRE"]
[SourceTitle "playchess.com"]
[Source "ChessBase"]
[SourceQuality "1"]
[TimeControl "40/5400+30:1800+30"]

1. e4 {[%emt 0:00:00]} c6 {[%emt 0:00:00]} 2. d4 {[%emt 0:00:00]} d5 {[%emt 0:00:00]} 3. Nc3 {[%emt 0:00:09]} dxe4 {[%emt 0:00:00]} 4. Nxe4 {[%emt 0:00:05]} Bf5 {[%emt 0:00:00]} 5. Ng3 {[%emt 0:00:25]} Bg6 {[%emt 0:00:00]} 6. h4 {[%emt 0:00:33]} h6 {[%emt 0:00:05]} 7. Nf3 {[%emt 0:02:07]} Nd7 {[%emt 0:01:05]} 8. Bd3 {[%emt 0:01:10]} Bxd3 {[%emt 0:02:06]} 9. Qxd3 {[%emt 0:00:07]} Ngf6 {[%emt 0:00:14]} 10. O-O {[%emt 0:03:34]} e6 {[%emt 0:05:09]} 11. Re1 {[%emt 0:04:52]} Be7 {[%emt 0:03:01]} 12. h5 {[%emt 0:05:33]} O-O {[%emt 0:03:15]} 13. c4 {[%emt 0:11:05]} c5 {[%emt 0:06:06]} 14. d5 {[%emt 0:21:43]} exd5 {[%emt 0:21:00]} 15. cxd5 {[%emt 0:00:28]} Nb6 {[%emt 0:02:52]} 16. Nf5 {[%emt 0:01:28]} Bd6 {[%emt 0:04:58]} 17. Nxh6+ {[%emt 0:23:41]} Kh8 {[%emt 0:19:39]} 18. Nf5 {[%emt 0:02:36]} Nxh5 {[%emt 0:00:54]} 19. Ng5 {[%emt 0:05:40]} Nf6 {[%emt 0:07:28]} 20. Re3 {[%emt 0:03:39]} Nbxd5 {[%emt 0:03:10]} 21. Rh3+ {[%emt 0:00:32]} Kg8 {[%emt 0:00:23]} 22. Nxd6 {[%emt 0:02:30]} Qxd6 {[%emt 0:00:34]} 23. Nh7 {[%emt 0:00:32]} Rfd8 {[%emt 0:01:03]} 24. Bg5 {[%emt 0:00:45]} g6 {[%emt 0:03:18]} 25. Nxf6+ {[%emt 0:00:25]} Nxf6 {[%emt 0:00:11]} 26. Qf3 {[%emt 0:00:08]} Kg7 {[%emt 0:00:56]} 27. Bxf6+ {[%emt 0:00:08]} Qxf6 {[%emt 0:02:46]} 28. Rh7+ {[%emt 0:00:09]} Kxh7 {[%emt 0:00:38]} 29. Qxf6 {[%emt 0:00:04]} Rd7 {[%emt 0:00:43]} 30. Re1 {[%emt 0:00:26]} Rad8 {[%emt 0:01:47]} 31. Re3 {[%emt 0:00:17]} 1-0

[Event "46th GRE-chT Premier 2018"]
[Site "Rio Achaia"]
[Date "2018.07.10"]
[Round "1"]
[White "Blitsas, Orestis"]
[Black "Patrelakis, Evaggelos"]
[Result "0-1"]
[ECO "B51"]
[WhiteElo "1584"]
[BlackElo "2285"]
[Annotator "NA"]
[PlyCount "86"]
[EventDate "2018.07.10"]
[EventType "team-tourn"]
[EventCountry "GRE"]
[SourceTitle "playchess.com"]
[Source "ChessBase"]
[SourceQuality "1"]
[TimeControl "40/5400+30:1800+30"]

1. e4 {[%emt 0:00:00]} c5 {[%emt 0:00:00]} 2. Nf3 {[%emt 0:00:00]} d6 {[%emt 0:00:00]} 3. Bb5+ {[%emt 0:00:02]} Nd7 {[%emt 0:00:00]} 4. c3 {[%emt 0:00:12]} a6 {[%emt 0:01:03]} 5. Bd3 {[%emt 0:00:25]} Ngf6 {[%emt 0:00:41]} 6. Bc2 {[%emt 0:00:16]} b5 {[%emt 0:00:57]} 7. d4 {[%emt 0:00:25]} cxd4 {[%emt 0:01:06]} 8. cxd4 {[%emt 0:00:17]} Qc7 {[%emt 0:00:14]} 9. O-O {[%emt 0:01:45]} Bb7 {[%emt 0:00:10]} 10. Nbd2 {[%emt 0:00:08]} g6 {[%emt 0:11:25]} 11. Re1 {[%emt 0:09:38]} e5 {[%emt 0:03:04]} 12. d5 {[%emt 0:24:01]} Bg7 {[%emt 0:03:14]} 13. Nf1 {[%emt 0:09:05]} Rc8 {[%emt 0:03:42]} 14. Re2 {[%emt 0:14:20]} O-O {[%emt 0:04:44]} 15. Ng3 {[%emt 0:08:21]} a5 {[%emt 0:11:21]} 16. h3 {[%emt 0:04:26]} Nc5 {[%emt 0:04:25]} 17. Be3 {[%emt 0:03:37]} Ba6 {[%emt 0:07:23]} 18. Rc1 {[%emt 0:02:23]} b4 {[%emt 0:01:56]} 19. Re1 {[%emt 0:00:40]} Qb7 {[%emt 0:02:45]} 20. Bb1 {[%emt 0:01:39]} Qb5 {[%emt 0:07:12]} 21. Qd2 {[%emt 0:06:33]} Nd3 {[%emt 0:11:57]} 22. Rxc8 {[%emt 0:00:24]} Rxc8 {[%emt 0:00:02]} 23. Rd1 {[%emt 0:00:17]} Nc5 {[%emt 0:01:14]} 24. Rc1 {[%emt 0:00:38]} a4 {[%emt 0:07:57]} 25. Nh4 {[%emt 0:04:42]} Ne8 {[%emt 0:08:11]} 26. Nf3 {[%emt 0:03:14]} Rc7 {[%emt 0:01:49]} 27. Nh2 {[%emt 0:01:30]} a3 {[%emt 0:01:15]} 28. b3 {[%emt 0:00:35]} Nd7 {[%emt 0:02:49]} 29. f3 {[%emt 0:01:17]} Rxc1+ {[%emt 0:00:30]} 30. Qxc1 {[%emt 0:00:05]} Nc5 {[%emt 0:00:10]} 31. Ng4 {[%emt 0:00:28]} h5 {[%emt 0:00:53]} 32. Nf2 {[%emt 0:00:23]} h4 {[%emt 0:00:11]} 33. Nf1 {[%emt 0:00:22]} Nc7 {[%emt 0:01:56]} 34. Bxc5 {[%emt 0:02:26]} Qxc5 {[%emt 0:01:26]} 35. Qxc5 {[%emt 0:00:21]} dxc5 {[%emt 0:00:02]} 36. Nd3 {[%emt 0:00:10]} Bf8 {[%emt 0:00:38]} 37. Nxe5 {[%emt 0:01:05]} Bxf1 {[%emt 0:00:09]} 38. Kxf1 {[%emt 0:00:09]} Nb5 {[%emt 0:00:01]} 39. Nc4 {[%emt 0:01:06]} Nc3 {[%emt 0:00:13]} 40. d6 {[%emt 0:00:00]} Nxb1 {[%emt 0:00:00]} 41. d7 {[%emt 0:09:06]} Be7 {[%emt 0:00:48]} 42. Ne5 {[%emt 0:00:41]} Nc3 {[%emt 0:00:29]} 43. Nc6 {[%emt 0:00:14]} Kf8 {[%emt 0:00:13]} 0-1

[Event "46th GRE-chT Premier 2018"]
[Site "Rio Achaia"]
[Date "2018.07.10"]
[Round "1"]
[White "Tzagarakis, Panagiotis"]
[Black "Kartsidima, Aikaterini"]
[Result "0-1"]
[ECO "B00"]
[WhiteElo "1573"]
[BlackElo "1402"]
[Annotator "NA"]
[PlyCount "78"]
[EventDate "2018.07.10"]
[EventType "team-tourn"]
[EventCountry "GRE"]
[SourceTitle "playchess.com"]
[Source "ChessBase"]
[SourceQuality "1"]
[TimeControl "40/5400+30:1800+30"]

1. e4 {[%emt 0:00:00]} d6 {[%emt 0:00:00]} 2. d4 {[%emt 0:07:04]} Nf6 {[%emt 0:00:53]} 3. Bd3 {[%emt 0:04:14]} g6 {[%emt 0:02:33]} 4. h3 {[%emt 0:00:57]} Bg7 {[%emt 0:04:57]} 5. Be3 {[%emt 0:00:41]} b6 {[%emt 0:03:40]} 6. Qe2 {[%emt 0:09:02]} Bb7 {[%emt 0:03:47]} 7. Nd2 {[%emt 0:01:59]} Nbd7 {[%emt 0:12:02]} 8. f4 {[%emt 0:12:18]} e5 {[%emt 0:14:22]} 9. fxe5 {[%emt 0:16:57]} dxe5 {[%emt 0:00:37]} 10. d5 {[%emt 0:01:47]} O-O {[%emt 0:06:46]} 11. Bg5 {[%emt 0:05:35]} Nc5 {[%emt 0:05:22]} 12. Bc4 {[%emt 0:03:07]} c6 {[%emt 0:08:38]} 13. O-O-O {[%emt 0:02:13]} h6 {[%emt 0:07:47]} 14. Bxf6 {[%emt 0:08:13]} Qxf6 {[%emt 0:02:24]} 15. dxc6 {[%emt 0:06:42]} Qxc6 {[%emt 0:04:03]} 16. Bd5 {[%emt 0:02:10]} Qc7 {[%emt 0:00:46]} 17. Nb3 {[%emt 0:02:29]} Nxb3+ {[%emt 0:02:39]} 18. Bxb3 {[%emt 0:00:16]} Rfd8 {[%emt 0:02:30]} 19. Nf3 {[%emt 0:01:40]} Rac8 {[%emt 0:02:06]} 20. Rdf1 {[%emt 0:01:24]} Qe7 {[%emt 0:05:24]} 21. Rf2 {[%emt 0:03:02]} Rc7 {[%emt 0:02:01]} 22. Rhf1 {[%emt 0:00:39]} Rf8 {[%emt 0:00:51]} 23. Nh2 {[%emt 0:01:53]} Qg5+ {[%emt 0:05:12]} 24. Kb1 {[%emt 0:00:14]} Qg3 {[%emt 0:01:27]} 25. Ng4 {[%emt 0:00:20]} h5 {[%emt 0:00:38]} 26. Nf6+ {[%emt 0:02:03]} Bxf6 {[%emt 0:00:18]} 27. Rxf6 {[%emt 0:00:16]} Qg5 {[%emt 0:00:42]} 28. Qf3 {[%emt 0:00:41]} Ba6 {[%emt 0:01:00]} 29. Rd1 {[%emt 0:02:11]} Bc4 {[%emt 0:00:29]} 30. Bxc4 {[%emt 0:00:21]} Rxc4 {[%emt 0:00:04]} 31. c3 {[%emt 0:00:44]} Rc7 {[%emt 0:00:22]} 32. g4 {[%emt 0:02:24]} h4 {[%emt 0:00:52]} 33. Rfd6 {[%emt 0:00:50]} Qe7 {[%emt 0:00:21]} 34. R1d5 {[%emt 0:00:43]} Rc5 {[%emt 0:00:50]} 35. Rd7 {[%emt 0:01:06]} Qe6 {[%emt 0:00:31]} 36. R5d6 {[%emt 0:00:36]} Qe8 {[%emt 0:00:17]} 37. Qf6 {[%emt 0:00:21]} Rc8 {[%emt 0:00:39]} 38. Qxh4 {[%emt 0:00:43]} Rc6 {[%emt 0:00:36]} 39. Qf6 {[%emt 0:00:46]} Qxd7 {[%emt 0:00:10]} 0-1

[Event "46th GRE-chT Premier 2018"]
[Site "Rio Achaia"]
[Date "2018.07.10"]
[Round "1"]
[White "Makridis, Dimitrios"]
[Black "Pilalis, Ernestos"]
[Result "1-0"]
[ECO "B23"]
[WhiteElo "1565"]
[BlackElo "1278"]
[Annotator "NA"]
[PlyCount "51"]
[EventDate "2018.07.10"]
[EventType "team-tourn"]
[EventCountry "GRE"]
[SourceTitle "playchess.com"]
[Source "ChessBase"]
[SourceQuality "1"]
[TimeControl "40/5400+30:1800+30"]

1. e4 {[%emt 0:00:00]} c5 {[%emt 0:00:00]} 2. Nc3 {[%emt 0:00:00]} e6 {[%emt 0:00:00]} 3. f4 {[%emt 0:00:11]} a6 {[%emt 0:00:07]} 4. Nf3 {[%emt 0:01:50]} Nc6 {[%emt 0:00:36]} 5. g3 {[%emt 0:00:47]} d5 {[%emt 0:00:54]} 6. d3 {[%emt 0:03:39]} Nf6 {[%emt 0:02:48]} 7. e5 {[%emt 0:00:09]} Nd7 {[%emt 0:00:26]} 8. Bg2 {[%emt 0:00:52]} Be7 {[%emt 0:02:35]} 9. O-O {[%emt 0:07:02]} O-O {[%emt 0:02:57]} 10. h4 {[%emt 0:03:49]} b5 {[%emt 0:04:33]} 11. g4 {[%emt 0:07:58]} f6 {[%emt 0:04:53]} 12. exf6 {[%emt 0:00:23]} Nxf6 {[%emt 0:00:18]} 13. Ne5 {[%emt 0:02:57]} Nxe5 {[%emt 0:04:34]} 14. fxe5 {[%emt 0:01:27]} b4 {[%emt 0:01:43]} 15. exf6 {[%emt 0:00:17]} Bxf6 {[%emt 0:00:41]} 16. Ne2 {[%emt 0:00:43]} Bxh4 {[%emt 0:00:19]} 17. Rxf8+ {[%emt 0:00:38]} Kxf8 {[%emt 0:00:19]} 18. Nf4 {[%emt 0:00:53]} Kg8 {[%emt 0:05:24]} 19. Qf3 {[%emt 0:00:56]} Ra7 {[%emt 0:03:51]} 20. Qh3 {[%emt 0:07:00]} g5 {[%emt 0:10:56]} 21. Nh5 {[%emt 0:04:59]} Rf7 {[%emt 0:04:47]} 22. Bd2 {[%emt 0:06:15]} Rf2 {[%emt 0:11:01]} 23. Be3 {[%emt 0:04:45]} Rxc2 {[%emt 0:03:38]} 24. Rf1 {[%emt 0:00:05]} d4 {[%emt 0:01:35]} 25. Nf6+ {[%emt 0:00:05]} Kh8 {[%emt 0:00:35]} 26. Bxg5 {[%emt 0:00:16]} 1-0